Workbook

Sheet BCBE Financial Plan
A1: Baldwin County School System
A2: Five Year Financial Plan
A3: General Fund FY 2015
C5: Actual | G5: Budgeted | H5: Projected | M5: ="Avg Ann Increase"&" "&C6&"- present" -> Avg Ann Increase 2011- present | N5: Assumptions
C6: 2011 | D6: 2012 | E6: 2013 | F6: 2014 | G6: 2015 | H6: 2016 | I6: =H6+1 -> 2017 | J6: =I6+1 -> 2018 | K6: =J6+1 -> 2019 | L6: =K6+1 -> 2020 | N6: =H6 -> 2016 | O6: =I6 -> 2017 | P6: =J6 -> 2018 | Q6: =K6 -> 2019 | R6: 2020 | S6: Description
A7: Revenues
B8: State Revenue | C8: 96,444,624 | D8: 104,908,320 | E8: 117,928,733 | F8: 128,172,408 | G8: 134,120,172 | H8: =IF(N8="","",G8*(1+N8)) -> 136,802,575 | I8: 139,538,627 | J8: 142,329,399 | K8: 145,175,987 | L8: 148,079,507 | M8: =IF(C8="","",IF(AND(G8>=0,G8<>"",C8>0),(G8/C8)^(1/4)-1,IF(AND(F8>=0,C8>0),(F8/C8)^(1/3)-1,"N/A"))) -> 9% | N8: 2% | O8: 2% | P8: 2% | Q8: 2% | R8: 2%
B9: Federal Revenue | C9: 0 | D9: 0 | E9: 0 | F9: 0 | G9: 0 | M9: =IF(C9="","",IF(AND(G9>=0,G9<>"",C9>0),(G9/C9)^(1/4)-1,IF(AND(F9>=0,C9>0),(F9/C9)^(1/3)-1,"N/A"))) -> N/A
B10: Local Revenue | C10: 113,202,605 | D10: 109,092,907 | E10: 112,235,095 | F10: 113,051,807 | G10: 107,597,677 | H10: 109,749,630 | I10: 101,518,408 | J10: 82,229,910 | K10: 69,895,424 | L10: 70,594,378 | M10: =IF(C10="","",IF(AND(G10>=0,G10<>"",C10>0),(G10/C10)^(1/4)-1,IF(AND(F10>=0,C10>0),(F10/C10)^(1/3)-1,"N/A"))) -> -1% | N10: 2% | O10: -8% | P10: -19% | Q10: -15% | R10: 1%
B11: Other Revenue | C11: 1,105,427 | D11: 1,265,406 | E11: 1,181,123 | F11: 977,946 | G11: 367,000 | H11: 367,000 | I11: 367,000 | J11: 367,000 | K11: 367,000 | L11: 367,000 | M11: =IF(C11="","",IF(AND(G11>=0,G11<>"",C11>0),(G11/C11)^(1/4)-1,IF(AND(F11>=0,C11>0),(F11/C11)^(1/3)-1,"N/A"))) -> -24% | N11: 0% | O11: 0% | P11: 0% | Q11: 0% | R11: 0%
B12: Total Revenues and Other Sources* | C12: =SUM(C8:C11) -> $210,752,656 | D12: $215,266,634 | E12: $231,344,950 | F12: $242,202,161 | G12: $242,084,849 | H12: $246,919,206 | I12: $241,424,035 | J12: $224,926,310 | K12: $215,438,411 | L12: $219,040,885 | M12: =IF(C12="","",IF(AND(G12>=0,G12<>"",C12>0),(G12/C12)^(1/4)-1,IF(AND(F12>=0,C12>0),(F12/C12)^(1/3)-1,"N/A"))) -> 4% | N12: =IF(G12<=0,"",(H12-G12)/G12) -> 2% | O12: =IF(H12<=0,"",(I12-H12)/H12) -> -2% | P12: =IF(I12<=0,"",(J12-I12)/I12) -> -7% | Q12: =IF(J12<=0,"",(K12-J12)/J12) -> -4% | R12: =IF(K12<=0,"",(L12-K12)/K12) -> 2%
A14: Expenditures by Object
B15: Instructional Services | C15: 117,340,206 | D15: 115,171,871 | E15: 122,506,518 | F15: 130,664,041 | G15: 138,930,954 | H15: =IF(N15="","",G15*(1+N15)) -> 141,709,573 | I15: 144,543,765 | J15: 147,434,640 | K15: 150,383,333 | L15: 153,391,000 | M15: =IF(C15="","",IF(AND(G15>=0,G15<>"",C15>0),(G15/C15)^(1/4)-1,IF(AND(F15>=0,C15>0),(F15/C15)^(1/3)-1,"N/A"))) -> 4% | N15: 2% | O15: 2% | P15: 2% | Q15: 2% | R15: 2%
B16: Instructional Support Services | C16: 28,364,247 | D16: 35,141,365 | E16: 34,948,181 | F16: 36,701,576 | G16: 38,954,707 | H16: 39,733,801 | I16: 40,528,477 | J16: 41,339,047 | K16: 42,165,828 | L16: 43,009,145 | M16: 8% | N16: 2% | O16: 2% | P16: 2% | Q16: 2% | R16: 2%
B17: Operations & Maintenance | C17: 10,567,765 | D17: 10,830,784 | E17: 11,134,413 | F17: 12,392,911 | G17: =17750463.08-5000000 -> 12,750,463 | H17: 13,005,472 | I17: 13,265,582 | J17: 13,530,893 | K17: 13,801,511 | L17: 14,077,542 | M17: 5% | N17: 2% | O17: 2% | P17: 2% | Q17: 2% | R17: 2%
B18: Auxilliary Services | C18: 8,508,811 | D18: 9,560,812 | E18: 10,482,506 | F18: 11,077,940 | G18: 10,755,896 | H18: 10,971,014 | I18: 11,190,434 | J18: 11,414,243 | K18: 11,642,527 | L18: 11,875,378 | M18: 6% | N18: 2% | O18: 2% | P18: 2% | Q18: 2% | R18: 2%
B19: General Administrative Services | C19: 6,474,076 | D19: 6,302,379 | E19: 7,764,041 | F19: 9,118,697 | G19: 8,770,989 | H19: 8,858,699 | I19: 8,947,286 | J19: 9,036,758 | K19: 9,127,126 | L19: 9,218,397 | M19: 8% | N19: 1% | O19: 1% | P19: 1% | Q19: 1% | R19: 1%
B20: Capital Outlay | C20: 92,692 | D20: 496,167 | E20: 10,929 | F20: 0 | G20: 0 | M20: -100% | N20: --- | O20: --- | P20: --- | Q20: --- | S20: Based on capital plan
B21: Debt Service (Leases) | C21: =293723.26+4147997.65 -> 4,441,721 | D21: 6,634,409 | E21: 4,571,232 | F21: 7,762,215 | G21: 10,361,474 | H21: 7,934,077 | I21: 6,120,119 | J21: =IF(P21="","",I21*(1+P21)) -> 6,181,320 | K21: 6,243,133 | L21: 6,305,565 | M21: 24% | N21: 0% | O21: 0% | P21: 1% | Q21: 1% | R21: 1%
B22: Other Expenditures | C22: 2,973,977 | D22: 3,000,598 | E22: 3,011,244 | F22: 3,067,052 | G22: 3,316,097 | H22: 3,415,579 | I22: 3,483,891 | J22: 3,553,569 | K22: 3,624,640 | L22: 3,697,133 | M22: 3% | N22: 3% | O22: 2% | P22: 2% | Q22: 2% | R22: 2%
B23: Interfund Transfers (Net) | C23: 13,875,258 | D23: 21,773,592 | E23: 28,534,750 | F23: 27,697,115 | G23: =11879609.17+5000000 -> 16,879,609 | H23: 17,723,590 | I23: 18,432,533 | J23: 14,746,027 | K23: 15,188,407 | L23: 15,644,060 | M23: 5% | N23: 5% | O23: 4% | P23: -20% | Q23: 3% | R23: 3%
B24: Total Expenditures and Other Uses* | C24: =SUM(C15:C23) -> $192,638,753 | D24: $208,911,977 | E24: $222,963,815 | F24: $238,481,547 | G24: $240,720,189 | H24: $243,351,806 | I24: $246,512,087 | J24: $247,236,497 | K24: $252,176,507 | L24: =SUM(L15:L23) -> $257,218,218 | M24: =IF(AND(G24>0,C24>0),(G24/C24)^(1/4)-1,IF(AND(G24<=0,C24>0),(F24/C24)^(1/3)-1,"")) -> 6% | N24: =IF(G24<=0,"",(H24-G24)/G24) -> 1% | O24: =IF(H24<=0,"",(I24-H24)/H24) -> 1% | P24: =IF(I24<=0,"",(J24-I24)/I24) -> 0% | Q24: =IF(J24<=0,"",(K24-J24)/J24) -> 2% | R24: =IF(K24<=0,"",(L24-K24)/K24) -> 2%
B25: (*Interfunds Transfers not shown)
A26: Surplus (Deficit) | C26: =C12-C24 -> $18,113,903 | D26: $6,354,656 | E26: $8,381,136 | F26: $3,720,614 | G26: $1,364,660 | H26: $3,567,400 | I26: ($5,088,052) | J26: ($22,310,187) | K26: ($36,738,095) | L26: ($38,177,333)
A28: Budgetary Reserves
B29: General Fund, Beg. Fund Balance | C29: $1,369,044 | D29: $19,439,509 | E29: $26,043,527 | F29: $34,423,265 | G29: $38,206,486 | H29: =G30 -> 39,571,146 | I29: =IF(H30="","",H30) -> $43,138,546 | J29: =IF(I30="","",I30) -> $38,050,494 | K29: =IF(J30="","",J30) -> $15,740,307 | L29: =IF(K30="","",K30) -> ($20,997,788)
B30: General Fund, Ending Fund Balance | C30: 19,482,947 | D30: 25,794,164 | E30: 34,424,663 | F30: 38,132,152 | G30: 39,571,146 | H30: =IF(H29="","",H26+H29) -> 43,138,546 | I30: =IF(I29="","",I26+I29) -> 38,050,494 | J30: =IF(J29="","",J26+J29) -> 15,740,307 | K30: =IF(K29="","",K26+K29) -> (20,997,788) | L30: =IF(L29="","",L26+L29) -> (59,175,121)
B31: State Required One Month Reserve | C31: 16,500,000 | D31: 17,000,000 | E31: 18,000,000 | F31: 19,500,000 | G31: 20,060,016 | H31: =(G31*0.02)+G31 -> 20,461,216 | I31: =(H31*0.02)+H31 -> 20,870,440 | J31: =(I31*0.02)+I31 -> 21,287,849 | K31: =(J31*0.02)+J31 -> 21,713,606 | L31: =(K31*0.02)+K31 -> 22,147,878
B32: Unrestricted Fund Balance | C32: =IF(C29="","",C30-C31) -> 2,982,947 | D32: 8,794,164 | E32: 16,424,663 | F32: 18,632,152 | G32: 19,511,130 | H32: 22,677,330 | I32: 17,180,054 | J32: (5,547,542) | K32: (42,711,394) | L32: =IF(L29="","",L30-L31) -> (81,322,999)
B33: UFB as % of Expenditures* | C33: =IF(C24>0,C32/C24,"") -> 1.5% | D33: =IF(D24>0,D32/D24,"") -> 4.2% | E33: 7.4% | F33: 7.8% | G33: 8.1% | H33: 9.3% | I33: 7.0% | J33: -2.2% | K33: -16.9% | L33: =IF(L24>0,L32/L24,"") -> -31.6%
A35: Number of Employees | C35: 3,098 | D35: 3,115 | E35: 3,501 | F35: 3,561 | G35: 3,667 | H35: =IF(N35="","",G35*(1+N35)) -> 3,740 | I35: 3,815 | J35: 3,891 | K35: 3,969 | L35: 4,049 | M35: =IF(AND(G35>0,C35>0),(G35/C35)^(1/4)-1,IF(AND(G35<=0,C35>0),(F35/C35)^(1/3)-1,"")) -> 4% | N35: 2% | O35: 2% | P35: 2% | Q35: 2% | R35: 2%
A36: ADM (State Funded Student Enrollment) | C36: 28,367 | D36: 28,611 | E36: 29,462 | F36: 30,302 | G36: 30,643 | H36: 31,256 | I36: 31,881 | J36: 32,519 | K36: 33,169 | L36: 33,832 | M36: =IF(AND(G36>0,C36>0),(G36/C36)^(1/4)-1,IF(AND(G36<=0,C36>0),(F36/C36)^(1/3)-1,"")) -> 2% | N36: 2% | O36: 2% | P36: 2% | Q36: 2% | R36: 2%
F61: 2015 12 mills | G61: 42,096,686
G62: 90,000 | I62: 104362848.3
G63: 3,303,962
G64: =SUM(G61:G63) -> 45,490,648
G65: =G64/12 -> 3,790,887.33
F66: Loss | G66: =G65*2 -> 7,581,774.67
G71: =G24/12 -> $20,060,015.72 | H71: =H24/12 -> $20,279,317.13 | I71: =I24/12 -> $20,542,673.90
